[Event "EYCC Girls U16 2018"]
[Site "Riga"]
[Date "2018.08.21"]
[Round "2"]
[White "Aubert, Estee"]
[Black "Schulze, Lara"]
[Result "1-0"]
[ECO "A45"]
[WhiteElo "1934"]
[BlackElo "2167"]
[Annotator "NA"]
[PlyCount "121"]
[EventDate "2018.08.20"]
[EventType "swiss"]
[EventCountry "LAT"]
[SourceTitle "playchess.com"]
[Source "ChessBase"]
[SourceQuality "1"]
[TimeControl "40/5400+30:1800+30"]

1. d4 {[%emt 0:00:00]} Nf6 {[%emt 0:00:00]} 2. Bf4 {[%emt 0:00:00]} c5 {[%emt 0:00:00]} 3. e3 {[%emt 0:00:00]} Qb6 {[%emt 0:00:00]} 4. Nc3 {[%emt 0:00:39]} a6 {[%emt 0:00:12] LiveBook: 7 Games} 5. Rb1 {[%emt 0:04:38]} d5 {[%emt 0:06:36]} 6. Nf3 {[%emt 0:07:32]} e6 $11 {[%emt 0:02:38]} 7. Be2 {[%emt 0:05:43]} Bd7 {[%emt 0:05:31]} 8. O-O {[%emt 0:03:21]} Be7 {[%emt 0:03:31]} 9. Ne5 {[%emt 0:06:07]} cxd4 {[%emt 0:01:50]} 10. exd4 {[%emt 0:02:37]} Nc6 {[%emt 0:02:22]} 11. Be3 {[%emt 0:02:18]} O-O {[%emt 0:08:24]} 12. a3 {[%emt 0:09:00]} Qc7 {[%emt 0:01:42]} 13. f4 {[%emt 0:01:07]} Na5 {[%emt 0:04:13]} 14. Rf3 {[%emt 0:04:32]} b5 {[%emt 0:09:25]} 15. Rh3 {[%emt 0:05:37]} Nc4 {[%emt 0:17:06]} 16. Bf2 {[%emt 0:01:46]} Be8 {[%emt 0:12:52]} 17. Bd3 {[%emt 0:01:25]} g6 {[%emt 0:01:36]} 18. Qe1 {[%emt 0:03:14]} Nd7 {[%emt 0:05:26]} 19. Bh4 {[%emt 0:03:54]} Ndxe5 {[%emt 0:08:25]} 20. fxe5 {[%emt 0:00:36]} Qd8 {[%emt 0:00:42]} 21. Qf2 {[%emt 0:01:55]} Bxh4 {[%emt 0:01:28]} 22. Rxh4 {[%emt 0:00:39]} f5 {[%emt 0:00:41]} 23. exf6 {[%emt 0:03:15]} Rxf6 {[%emt 0:01:35]} 24. Qg3 {[%emt 0:01:35]} Ra7 {[%emt 0:01:27]} 25. Ne2 {[%emt 0:09:58]} Rg7 {[%emt 0:02:24]} 26. Rg4 {[%emt 0:00:56]} Qe7 {[%emt 0:02:00]} 27. Nf4 {[%emt 0:00:24]} Nb6 {[%emt 0:00:46]} 28. Re1 {[%emt 0:01:29]} Qf7 {[%emt 0:00:27]} 29. Nh3 {[%emt 0:02:45]} h6 {[%emt 0:00:34]} 30. Qh4 {[%emt 0:02:18]} g5 {[%emt 0:00:23]} 31. Qg3 {[%emt 0:00:14]} Nd7 {[%emt 0:00:32]} 32. Nf2 {[%emt 0:09:43]} Qf8 {[%emt 0:00:31]} 33. h4 {[%emt 0:01:33]} gxh4 {[%emt 0:00:27]} 34. Qxh4 {[%emt 0:03:02]} h5 {[%emt 0:00:05]} 35. Rxg7+ {[%emt 0:01:03]} Qxg7 {[%emt 0:00:01]} 36. Re3 {[%emt 0:01:31]} Qh6 {[%emt 0:00:40]} 37. Rg3+ {[%emt 0:00:36]} Kh8 {[%emt 0:00:01]} 38. Rg5 {[%emt 0:00:34]} Nf8 {[%emt 0:00:41]} 39. Nh3 {[%emt 0:00:55]} Nh7 {[%emt 0:01:22]} 40. Bxh7 {[%emt 0:00:00]} Qxh7 {[%emt 0:00:00]} 41. Rxh5 {[%emt 0:04:03]} Bxh5 {[%emt 0:03:25]} 42. Qxf6+ {[%emt 0:00:12]} Qg7 {[%emt 0:00:08]} 43. Qxg7+ {[%emt 0:05:09]} Kxg7 {[%emt 0:00:01]} 44. Nf4 {[%emt 0:05:01]} Bg4 {[%emt 0:02:24]} 45. Kf2 {[%emt 0:02:03]} Kf6 {[%emt 0:00:59]} 46. Ke3 {[%emt 0:00:36]} Bf5 {[%emt 0:06:43]} 47. c3 {[%emt 0:00:23]} a5 {[%emt 0:01:08]} 48. Nh5+ {[%emt 0:04:19]} Kg6 {[%emt 0:05:03]} 49. Ng3 {[%emt 0:00:50]} Bc2 {[%emt 0:01:29]} 50. Kf4 {[%emt 0:00:27]} Bd3 {[%emt 0:00:29]} 51. Kg4 {[%emt 0:05:42]} a4 {[%emt 0:04:23]} 52. Kf4 {[%emt 0:00:36]} Kh6 {[%emt 0:00:37]} 53. Ke3 {[%emt 0:05:02]} Bc2 {[%emt 0:02:05]} 54. Kf4 {[%emt 0:01:50]} Bd3 {[%emt 0:00:15]} 55. Ke5 {[%emt 0:00:04]} Kg5 {[%emt 0:00:13]} 56. Kxe6 {[%emt 0:00:55]} Be4 {[%emt 0:01:40]} 57. Ke5 {[%emt 0:00:41]} Bxg2 {[%emt 0:00:35]} 58. Nf5 {[%emt 0:00:12]} Bf1 {[%emt 0:03:05]} 59. Ne3 {[%emt 0:00:24]} Bd3 {[%emt 0:00:47]} 60. Nxd5 {[%emt 0:00:25]} Kg4 {[%emt 0:00:45]} 61. Nc7 {[%emt 0:00:26]} 1-0

[Event "EYCC Girls U16 2018"]
[Site "Riga"]
[Date "2018.08.22"]
[Round "3"]
[White "Beydullayeva, Govhar"]
[Black "Grigorieva, Yulia"]
[Result "1-0"]
[ECO "D76"]
[WhiteElo "2184"]
[BlackElo "1992"]
[Annotator "NA"]
[PlyCount "113"]
[EventDate "2018.08.20"]
[EventType "swiss"]
[EventCountry "LAT"]
[SourceTitle "playchess.com"]
[Source "ChessBase"]
[SourceQuality "1"]
[TimeControl "40/5400+30:1800+30"]

1. d4 {[%emt 0:00:00]} Nf6 {[%emt 0:00:00]} 2. c4 {[%emt 0:00:00]} g6 {[%emt 0:00:00]} 3. Nf3 {[%emt 0:00:00]} Bg7 {[%emt 0:00:12]} 4. g3 {[%emt 0:00:27]} d5 {[%emt 0:00:44]} 5. cxd5 {[%emt 0:00:20]} O-O {[%emt 0:00:22]} 6. Bg2 {[%emt 0:00:02]} Nxd5 {[%emt 0:00:44]} 7. O-O {[%emt 0:00:12]} Nb6 {[%emt 0:00:23]} 8. Nc3 {[%emt 0:00:46]} Nc6 {[%emt 0:00:18]} 9. e3 {[%emt 0:01:23]} Re8 {[%emt 0:00:30]} 10. d5 {[%emt 0:00:32]} Na5 {[%emt 0:13:31]} 11. Nd4 $11 {[%emt 0:00:19] LiveBook: 507 Games} Bd7 {[%emt 0:08:14]} 12. Rb1 {[%emt 0:00:07]} c6 {[%emt 0:14:24]} 13. b4 {[%emt 0:06:30]} Nac4 {[%emt 0:00:15]} 14. dxc6 {[%emt 0:01:55]} bxc6 {[%emt 0:08:21]} 15. Ne4 {[%emt 0:11:17]} e5 {[%emt 0:04:31]} 16. Nb3 {[%emt 0:05:22]} Qc7 {[%emt 0:04:50]} 17. Nec5 {[%emt 0:08:50]} Bf5 {[%emt 0:04:16]} 18. e4 {[%emt 0:01:42]} Be6 {[%emt 0:00:44]} 19. Qc2 {[%emt 0:13:01]} Qe7 {[%emt 0:14:08]} 20. a4 {[%emt 0:05:55]} Nd6 {[%emt 0:04:07]} 21. a5 {[%emt 0:01:37]} Nbc4 {[%emt 0:01:02]} 22. Nxe6 {[%emt 0:01:11]} Qxe6 {[%emt 0:02:56]} 23. Nc5 {[%emt 0:00:33]} Qe7 {[%emt 0:02:27]} 24. Re1 {[%emt 0:03:59]} f5 {[%emt 0:03:38]} 25. Bf1 {[%emt 0:03:40]} Qf7 {[%emt 0:01:46]} 26. Rb3 {[%emt 0:02:30]} Nb6 {[%emt 0:03:07]} 27. axb6 {[%emt 0:01:38]} axb6 {[%emt 0:00:05]} 28. Nd3 {[%emt 0:04:53]} fxe4 {[%emt 0:03:09]} 29. Nb2 {[%emt 0:00:40]} Kh8 {[%emt 0:02:00]} 30. Rc3 {[%emt 0:05:59]} Nf5 {[%emt 0:03:38]} 31. Qxe4 {[%emt 0:00:17]} Nd4 {[%emt 0:00:13]} 32. Bg2 {[%emt 0:04:27]} Ra2 {[%emt 0:00:23]} 33. f3 {[%emt 0:07:34]} Qe7 {[%emt 0:00:51]} 34. Nd3 {[%emt 0:01:05]} Qd6 {[%emt 0:00:36]} 35. Kh1 {[%emt 0:01:59]} Nc2 {[%emt 0:00:29]} 36. Re2 {[%emt 0:01:42]} Nxb4 {[%emt 0:00:26]} 37. Rxa2 {[%emt 0:01:19]} Nxa2 {[%emt 0:00:04]} 38. Rxc6 {[%emt 0:00:12]} Qd7 {[%emt 0:00:38]} 39. Bb2 {[%emt 0:02:11]} Nb4 {[%emt 0:00:49]} 40. Rc3 {[%emt 0:00:00]} Nd5 {[%emt 0:00:00]} 41. Rc1 {[%emt 0:00:58]} Qb5 {[%emt 0:09:33]} 42. Re1 {[%emt 0:04:22]} Nf6 {[%emt 0:04:48]} 43. Qe2 {[%emt 0:04:54]} Nd7 {[%emt 0:03:02]} 44. Bh3 {[%emt 0:02:30]} Nc5 {[%emt 0:00:58]} 45. Nxe5 {[%emt 0:03:54]} Qxe2 {[%emt 0:01:35]} 46. Rxe2 {[%emt 0:00:00]} Kg8 {[%emt 0:01:09]} 47. f4 {[%emt 0:00:38]} b5 {[%emt 0:00:14]} 48. Bg2 {[%emt 0:00:08]} Bxe5 {[%emt 0:01:05]} 49. Rxe5 {[%emt 0:00:23]} Rc8 {[%emt 0:00:50]} 50. Bd5+ {[%emt 0:00:40]} Kf8 {[%emt 0:00:07]} 51. Ba3 {[%emt 0:00:06]} Kg7 {[%emt 0:00:21]} 52. Re7+ {[%emt 0:00:18]} Kh6 {[%emt 0:00:15]} 53. g4 {[%emt 0:00:41]} g5 {[%emt 0:00:44]} 54. Bxc5 {[%emt 0:00:51]} gxf4 {[%emt 0:00:55]} 55. h4 {[%emt 0:00:45]} f3 {[%emt 0:00:47]} 56. Be4 {[%emt 0:00:08]} Rh8 {[%emt 0:00:06]} 57. Be3# {[%emt 0:00:02]} 1-0

[Event "EYCC Girls U16 2018"]
[Site "Riga"]
[Date "2018.08.22"]
[Round "3"]
[White "Schneider, Jana"]
[Black "Aubert, Estee"]
[Result "1/2-1/2"]
[ECO "C24"]
[WhiteElo "2179"]
[BlackElo "1934"]
[Annotator "NA"]
[PlyCount "90"]
[EventDate "2018.08.20"]
[EventType "swiss"]
[EventCountry "LAT"]
[SourceTitle "playchess.com"]
[Source "ChessBase"]
[SourceQuality "1"]
[TimeControl "40/5400+30:1800+30"]

1. e4 {[%emt 0:00:00]} e5 {[%emt 0:00:00]} 2. Bc4 {[%emt 0:00:01]} Nf6 {[%emt 0:00:00]} 3. d3 {[%emt 0:00:09]} c6 {[%emt 0:00:44]} 4. Nf3 {[%emt 0:00:55]} d5 {[%emt 0:00:33]} 5. Bb3 {[%emt 0:00:28]} a5 {[%emt 0:01:39]} 6. a4 {[%emt 0:00:50]} Bb4+ {[%emt 0:01:02]} 7. Bd2 {[%emt 0:09:46]} dxe4 {[%emt 0:27:11]} 8. Nxe5 {[%emt 0:07:57]} O-O {[%emt 0:00:17]} 9. Bxb4 {[%emt 0:04:49]} axb4 {[%emt 0:01:39]} 10. d4 {[%emt 0:10:00]} Nbd7 {[%emt 0:05:44]} 11. Nc4 {[%emt 0:01:48]} b5 {[%emt 0:16:34]} 12. Nd6 {[%emt 0:06:05]} bxa4 {[%emt 0:00:28]} 13. Nxc8 {[%emt 0:00:52]} Qxc8 {[%emt 0:01:51]} 14. Rxa4 {[%emt 0:00:24]} Rxa4 {[%emt 0:00:51]} 15. Bxa4 {[%emt 0:00:07]} Nb6 {[%emt 0:01:46]} 16. c3 {[%emt 0:04:52]} Nxa4 {[%emt 0:01:12]} 17. Qxa4 {[%emt 0:00:09]} bxc3 {[%emt 0:01:06]} 18. Nxc3 {[%emt 0:02:03]} Qb7 {[%emt 0:01:50]} 19. O-O {[%emt 0:02:22]} Re8 {[%emt 0:05:13]} 20. Re1 {[%emt 0:02:26]} Re6 {[%emt 0:01:47]} 21. b4 {[%emt 0:09:37]} Qd7 {[%emt 0:03:41]} 22. d5 {[%emt 0:04:44]} cxd5 {[%emt 0:02:38]} 23. Qxd7 {[%emt 0:00:10]} Nxd7 {[%emt 0:00:03]} 24. Nxd5 {[%emt 0:00:16]} f5 {[%emt 0:02:18]} 25. f3 {[%emt 0:08:45]} Re5 {[%emt 0:09:18]} 26. fxe4 {[%emt 0:01:13]} fxe4 {[%emt 0:01:35]} 27. Nc3 {[%emt 0:01:37]} e3 {[%emt 0:01:56]} 28. Kf1 {[%emt 0:04:30]} Rf5+ {[%emt 0:04:43]} 29. Kg1 {[%emt 0:00:09]} Re5 {[%emt 0:00:07]} 30. g4 {[%emt 0:00:47]} Nf6 {[%emt 0:03:31]} 31. h3 {[%emt 0:00:43]} h5 {[%emt 0:00:20]} 32. gxh5 {[%emt 0:03:15]} Nxh5 {[%emt 0:00:08]} 33. b5 {[%emt 0:01:22]} Nf4 {[%emt 0:02:03]} 34. b6 {[%emt 0:01:08]} Re7 {[%emt 0:01:10]} 35. Kh2 {[%emt 0:06:26]} Rb7 {[%emt 0:01:04]} 36. Kg3 {[%emt 0:01:02]} g5 {[%emt 0:00:36]} 37. Rb1 {[%emt 0:01:41]} Kg7 {[%emt 0:00:16]} 38. h4 {[%emt 0:01:38]} Ne6 {[%emt 0:00:16]} 39. Ne4 {[%emt 0:01:30]} gxh4+ {[%emt 0:00:18]} 40. Kf3 {[%emt 0:00:00]} h3 {[%emt 0:00:00]} 41. Nd6 {[%emt 0:01:48]} Rb8 {[%emt 0:04:30]} 42. Kxe3 {[%emt 0:04:53]} h2 {[%emt 0:03:24]} 43. Nc4 {[%emt 0:02:25]} Nc5 {[%emt 0:04:38]} 44. Kf2 {[%emt 0:01:21]} Rh8 {[%emt 0:01:08]} 45. Kg2 {[%emt 0:02:19]} h1=Q+ {[%emt 0:00:50]} 1/2-1/2

[Event "EYCC Girls U16 2018"]
[Site "Riga"]
[Date "2018.08.22"]
[Round "3"]
[White "Srdanovic, Jovana"]
[Black "Strukova, Ksenia"]
[Result "1/2-1/2"]
[ECO "A48"]
[WhiteElo "2128"]
[BlackElo "1967"]
[Annotator "NA"]
[PlyCount "59"]
[EventDate "2018.08.20"]
[EventType "swiss"]
[EventCountry "LAT"]
[SourceTitle "playchess.com"]
[Source "ChessBase"]
[SourceQuality "1"]
[TimeControl "40/5400+30:1800+30"]

1. d4 {[%emt 0:00:00]} Nf6 {[%emt 0:00:00]} 2. Nf3 {[%emt 0:00:00]} g6 {[%emt 0:00:00]} 3. Bg5 {[%emt 0:00:00]} Bg7 {[%emt 0:01:55]} 4. Nbd2 {[%emt 0:00:00]} O-O {[%emt 0:00:22]} 5. c3 {[%emt 0:00:31]} b6 {[%emt 0:09:07]} 6. e4 {[%emt 0:04:16]} Bb7 $14 {[%emt 0:03:46] LiveBook: 5 Partien} 7. Bd3 {[%emt 0:07:48]} d5 {[%emt 0:16:06]} 8. Qe2 {[%emt 0:08:17]} dxe4 {[%emt 0:02:05]} 9. Nxe4 {[%emt 0:02:13]} Nd5 {[%emt 0:03:13]} 10. Bd2 {[%emt 0:03:04]} e6 {[%emt 0:05:34]} 11. O-O {[%emt 0:01:06]} Nd7 {[%emt 0:02:39]} 12. Rfd1 {[%emt 0:02:56]} Qc8 {[%emt 0:06:56]} 13. Rac1 {[%emt 0:02:38]} Re8 {[%emt 0:05:27]} 14. c4 {[%emt 0:26:27]} N5f6 {[%emt 0:09:30]} 15. Bc3 {[%emt 0:00:54]} Nh5 {[%emt 0:09:54]} 16. Qd2 {[%emt 0:04:03]} Ndf6 {[%emt 0:06:54]} 17. Re1 {[%emt 0:00:34]} Rd8 {[%emt 0:02:48]} 18. Nxf6+ {[%emt 0:11:30]} Nxf6 {[%emt 0:02:27]} 19. Qe3 {[%emt 0:01:20]} Ng4 {[%emt 0:02:33]} 20. Qe2 {[%emt 0:03:24]} c5 {[%emt 0:00:50]} 21. dxc5 {[%emt 0:02:38]} Bxc3 {[%emt 0:00:04]} 22. Rxc3 {[%emt 0:00:19]} Qxc5 {[%emt 0:00:01]} 23. h3 {[%emt 0:00:16]} Bxf3 {[%emt 0:01:38]} 24. Qxf3 {[%emt 0:01:08]} Ne5 {[%emt 0:00:11]} 25. Qe4 {[%emt 0:00:25]} Nc6 {[%emt 0:01:32]} 26. a3 {[%emt 0:03:32]} Rd4 {[%emt 0:01:48]} 27. Qe3 {[%emt 0:00:09]} Rad8 {[%emt 0:00:33]} 28. Bf1 {[%emt 0:00:53]} Qd6 {[%emt 0:01:13]} 29. b4 {[%emt 0:00:54]} h5 {[%emt 0:03:01]} 30. Qg5 {[%emt 0:01:52]} 1/2-1/2

[Event "EYCC Girls U16 2018"]
[Site "Riga"]
[Date "2018.08.22"]
[Round "3"]
[White "Bucur, Denisa Andreea"]
[Black "Antova, Gabriela"]
[Result "0-1"]
[ECO "D10"]
[WhiteElo "2077"]
[BlackElo "2293"]
[Annotator "NA"]
[PlyCount "48"]
[EventDate "2018.08.20"]
[EventType "swiss"]
[EventCountry "LAT"]
[SourceTitle "playchess.com"]
[Source "ChessBase"]
[SourceQuality "1"]
[TimeControl "40/5400+30:1800+30"]

1. d4 {[%emt 0:00:00]} d5 {[%emt 0:00:00]} 2. c4 {[%emt 0:00:00]} c6 {[%emt 0:00:00]} 3. Nc3 {[%emt 0:00:00]} Nf6 {[%emt 0:00:00]} 4. cxd5 {[%emt 0:00:19]} cxd5 {[%emt 0:00:11]} 5. Bf4 {[%emt 0:00:23]} Nc6 {[%emt 0:00:56]} 6. e3 {[%emt 0:00:39]} a6 {[%emt 0:00:29]} 7. Rc1 {[%emt 0:01:46]} Bg4 {[%emt 0:13:03]} 8. f3 {[%emt 0:01:23]} Bd7 {[%emt 0:07:13]} 9. Bd3 {[%emt 0:02:00] LiveBook: 12 Games} g6 {[%emt 0:03:33]} 10. Nge2 {[%emt 0:01:32]} Bg7 {[%emt 0:01:23]} 11. O-O {[%emt 0:01:20]} O-O {[%emt 0:01:09]} 12. Na4 {[%emt 0:02:24]} Nh5 {[%emt 0:15:38]} 13. Bg5 $1 {[%emt 0:02:45]} b6 {[%emt 0:08:40]} 14. Nec3 {[%emt 0:14:06]} Na5 {[%emt 0:07:03]} 15. Qe2 {[%emt 0:11:22]} Bc8 $16 {[%emt 0:06:07]} 16. Nxd5 {[%emt 0:27:42]} Qxd5 {[%emt 0:00:42]} 17. Nxb6 {[%emt 0:00:35]} Qxg5 {[%emt 0:01:53]} 18. Nxa8 {[%emt 0:00:30]} Bxd4 {[%emt 0:08:26]} 19. exd4 {[%emt 0:02:28]} Nf4 {[%emt 0:01:26]} 20. Qc2 {[%emt 0:01:09]} Bh3 {[%emt 0:00:29]} 21. Kf2 {[%emt 0:07:34]} Qxg2+ {[%emt 0:02:10]} 22. Ke3 {[%emt 0:02:43]} Nd5+ {[%emt 0:01:05]} 23. Ke4 {[%emt 0:00:09]} Qg5 {[%emt 0:00:30]} 24. f4 {[%emt 0:01:21]} Bg2+ {[%emt 0:00:11]} 0-1

[Event "EYCC Girls U16 2018"]
[Site "Riga"]
[Date "2018.08.22"]
[Round "3"]
[White "Heydarova, Aytaj"]
[Black "Goltseva, Ekaterina"]
[Result "1/2-1/2"]
[ECO "C08"]
[WhiteElo "2052"]
[BlackElo "2185"]
[Annotator "NA"]
[PlyCount "79"]
[EventDate "2018.08.20"]
[EventType "swiss"]
[EventCountry "LAT"]
[SourceTitle "playchess.com"]
[Source "ChessBase"]
[SourceQuality "1"]
[TimeControl "40/5400+30:1800+30"]

1. e4 {[%emt 0:00:00]} e6 {[%emt 0:00:00]} 2. d4 {[%emt 0:00:00]} d5 {[%emt 0:00:04]} 3. Nd2 {[%emt 0:00:00]} c5 {[%emt 0:01:07]} 4. exd5 {[%emt 0:00:00]} exd5 {[%emt 0:00:06]} 5. Ngf3 {[%emt 0:00:12]} a6 {[%emt 0:00:32]} 6. dxc5 {[%emt 0:05:52]} Bxc5 {[%emt 0:00:19]} 7. Nb3 {[%emt 0:00:38]} Bb6 {[%emt 0:03:39]} 8. Nbd4 {[%emt 0:05:46] C08: French Tarrasch: 3...c5 4 exd5 exd5 sidelines} (8. Bd3 Qe7+ 9. Be2 Nf6 10. O-O O-O 11. Bg5 h6 12. Bh4 Nc6 13. c3 g5 14. Bg3 Ne4 15. Re1 Qf6 16. Qxd5 Nxg3 17. hxg3 {½-½ (41) Fedorchuk,S (2641)-Gurevich,M (2565) Paris 2017}) 8... Nf6 {[%emt 0:02:12]} 9. Bd3 $146 {[%emt 0:02:50]} ({Predecessor:} 9. h3 O-O 10. Be2 Nc6 11. Bf4 Re8 12. Be3 Ne4 13. c3 Ng3 14. Nxc6 bxc6 15. Bxb6 Nxe2 {1-0 (59) Cernousek,L (2293)-Wiley,T (2328) Olomouc 2003}) 9... Qe7+ {[%emt 0:03:39]} 10. Qe2 {[%emt 0:07:22]} Qxe2+ {[%emt 0:01:32]} 11. Kxe2 {[%emt 0:05:15]} O-O {[%emt 0:02:44]} 12. Re1 {[%emt 0:09:18]} Nc6 {[%emt 0:08:47]} 13. c3 {[%emt 0:09:10]} Bg4 {[%emt 0:05:49]} 14. Kf1 {[%emt 0:09:00]} Rfe8 {[%emt 0:10:21]} 15. Bf4 {[%emt 0:03:57]} Bxf3 {[%emt 0:13:57]} 16. Nxf3 {[%emt 0:00:24]} Ne4 {[%emt 0:00:40]} 17. Be3 {[%emt 0:01:57]} Bxe3 {[%emt 0:01:58]} 18. Rxe3 {[%emt 0:00:37]} Nc5 {[%emt 0:03:44]} 19. Rxe8+ $19 {[%emt 0:01:15]} Rxe8 {[%emt 0:00:04]} 20. Bc2 {[%emt 0:02:02]} Kf8 {[%emt 0:04:30]} 21. Rd1 {[%emt 0:05:21]} Rd8 {[%emt 0:02:50]} 22. b4 {[%emt 0:09:28]} Ne6 {[%emt 0:00:40]} 23. Bb3 {[%emt 0:00:49]} Ne7 {[%emt 0:05:08]} 24. g3 {[%emt 0:02:44]} Rc8 {[%emt 0:03:07]} 25. Rd3 {[%emt 0:01:24]} Nc7 {[%emt 0:00:37]} 26. Ke2 {[%emt 0:06:03]} f6 {[%emt 0:11:41]} 27. Nd4 {[%emt 0:03:18]} Nc6 {[%emt 0:01:11]} 28. Nxc6 {[%emt 0:05:39]} bxc6 {[%emt 0:00:04]} 29. c4 {[%emt 0:00:48]} Rd8 {[%emt 0:02:23]} 30. Ba4 {[%emt 0:01:13]} Rb8 {[%emt 0:06:21]} 31. Bxc6 {[%emt 0:01:15]} dxc4 {[%emt 0:00:06]} 32. Rd7 {[%emt 0:00:44]} Nb5 {[%emt 0:01:49]} 33. Kd2 {[%emt 0:01:02]} c3+ {[%emt 0:04:10]} 34. Kc1 {[%emt 0:00:04]} Na3 {[%emt 0:00:31]} 35. Rd4 {[%emt 0:01:22]} a5 {[%emt 0:00:32]} 36. b5 {[%emt 0:00:06]} Nxb5 {[%emt 0:00:24]} 37. Ra4 {[%emt 0:00:51]} Ke7 {[%emt 0:00:38]} 38. Kc2 {[%emt 0:00:34]} Kd6 {[%emt 0:00:29]} 39. Bxb5 {[%emt 0:00:18]} Rxb5 {[%emt 0:00:04]} 40. Kxc3 {[%emt 0:00:00]} 1/2-1/2

[Event "EYCC Girls U16 2018"]
[Site "Riga"]
[Date "2018.08.22"]
[Round "3"]
[White "Bulatova, Kamaliya"]
[Black "Ferkova, Dominika"]
[Result "1-0"]
[ECO "D30"]
[WhiteElo "2043"]
[BlackElo "2180"]
[Annotator "NA"]
[PlyCount "129"]
[EventDate "2018.08.20"]
[EventType "swiss"]
[EventCountry "LAT"]
[SourceTitle "playchess.com"]
[Source "ChessBase"]
[SourceQuality "1"]
[TimeControl "40/5400+30:1800+30"]

1. d4 {[%emt 0:00:00]} d5 {[%emt 0:00:00]} 2. c4 {[%emt 0:00:00]} c6 {[%emt 0:00:00]} 3. Nf3 {[%emt 0:00:00]} Nf6 {[%emt 0:00:00]} 4. e3 {[%emt 0:00:00]} e6 {[%emt 0:00:00]} 5. Nbd2 {[%emt 0:00:00]} Be7 {[%emt 0:00:17]} 6. Bd3 {[%emt 0:00:36]} dxc4 {[%emt 0:03:37]} 7. Nxc4 {[%emt 0:01:02]} O-O {[%emt 0:00:54]} 8. O-O {[%emt 0:01:38]} c5 {[%emt 0:02:57]} 9. dxc5 {[%emt 0:12:49]} Bxc5 {[%emt 0:01:38]} 10. b3 {[%emt 0:03:37]} Nc6 $16 {[%emt 0:03:42]} 11. a3 {[%emt 0:04:52]} b5 {[%emt 0:04:42]} 12. Nce5 {[%emt 0:04:40]} Nxe5 {[%emt 0:00:58]} 13. Nxe5 {[%emt 0:00:10]} Qd5 {[%emt 0:01:00]} 14. Bb2 {[%emt 0:02:03]} Bb7 {[%emt 0:02:49]} 15. Nf3 {[%emt 0:01:28]} Be7 {[%emt 0:00:42]} 16. Be2 {[%emt 0:16:05]} a6 {[%emt 0:10:00]} 17. a4 {[%emt 0:04:40]} Qxd1 {[%emt 0:14:21]} 18. Rfxd1 {[%emt 0:00:47]} b4 {[%emt 0:03:07]} 19. Ne5 {[%emt 0:04:57]} Bd5 {[%emt 0:01:55]} 20. Bc4 {[%emt 0:01:34]} Bxc4 {[%emt 0:09:43]} 21. Nxc4 {[%emt 0:01:48]} Rfd8 {[%emt 0:01:23]} 22. Bd4 {[%emt 0:03:31]} Ne4 {[%emt 0:08:04]} 23. Bb6 {[%emt 0:06:45]} Rxd1+ {[%emt 0:08:54]} 24. Rxd1 {[%emt 0:00:08]} Nf6 {[%emt 0:04:22]} 25. a5 {[%emt 0:09:02]} Kf8 {[%emt 0:04:47]} 26. Rd4 {[%emt 0:05:03]} Nd5 {[%emt 0:02:34]} 27. e4 {[%emt 0:06:00]} Nxb6 {[%emt 0:02:22]} 28. axb6 {[%emt 0:00:23]} Ke8 {[%emt 0:01:13]} 29. b7 {[%emt 0:03:06]} Rb8 {[%emt 0:00:35]} 30. Na5 {[%emt 0:00:03]} Bf6 {[%emt 0:07:29]} 31. Rxb4 {[%emt 0:02:35]} Kd7 {[%emt 0:00:18]} 32. Rb6 {[%emt 0:01:33]} Bd8 {[%emt 0:00:37]} 33. Nc6 {[%emt 0:01:49]} Bxb6 {[%emt 0:00:02]} 34. Nxb8+ {[%emt 0:00:06]} Kc7 {[%emt 0:00:02]} 35. Nxa6+ {[%emt 0:00:10]} Kxb7 {[%emt 0:00:09]} 36. Nb4 {[%emt 0:00:05]} Bd4 {[%emt 0:00:58]} 37. Nc2 {[%emt 0:00:21]} Bc3 {[%emt 0:00:27]} 38. Kf1 {[%emt 0:00:33]} Kc6 {[%emt 0:00:35]} 39. Ke2 {[%emt 0:00:12]} Kc5 {[%emt 0:01:19]} 40. Kd3 {[%emt 0:00:00]} Be5 {[%emt 0:00:00]} 41. g3 {[%emt 0:01:42]} Bb2 {[%emt 0:02:20]} 42. f4 {[%emt 0:01:31]} h6 {[%emt 0:05:36]} 43. Ne1 {[%emt 0:07:01]} g5 {[%emt 0:05:59]} 44. fxg5 hxg5 {[%emt 0:00:01]} 45. Nf3 {[%emt 0:02:15]} f6 {[%emt 0:01:07]} 46. h3 {[%emt 0:03:52]} Ba1 {[%emt 0:01:59]} 47. Nd4 {[%emt 0:07:23]} Kd6 {[%emt 0:08:33]} 48. b4 {[%emt 0:00:50]} Bb2 {[%emt 0:01:18]} 49. Nf3 {[%emt 0:01:04]} Bc1 {[%emt 0:01:14]} 50. e5+ {[%emt 0:00:56]} Ke7 {[%emt 0:01:41]} 51. exf6+ {[%emt 0:01:08]} Kxf6 {[%emt 0:00:02]} 52. b5 {[%emt 0:00:14]} g4 {[%emt 0:04:01]} 53. hxg4 {[%emt 0:00:34]} Ba3 {[%emt 0:00:29]} 54. Ke4 {[%emt 0:01:39]} Bd6 {[%emt 0:00:23]} 55. g5+ {[%emt 0:00:01]} Kg6 {[%emt 0:00:06]} 56. Ne5+ {[%emt 0:00:07]} Kg7 {[%emt 0:00:55]} 57. b6 {[%emt 0:00:05]} Bb8 {[%emt 0:00:25]} 58. b7 {[%emt 0:00:32]} Bc7 {[%emt 0:01:02]} 59. Nd3 {[%emt 0:04:51]} Kg6 {[%emt 0:02:21]} 60. Nf4+ {[%emt 0:00:06]} Kf7 {[%emt 0:00:40]} 61. g6+ {[%emt 0:00:33]} Kg8 {[%emt 0:00:13]} 62. Nxe6 {[%emt 0:00:28]} Bb8 {[%emt 0:00:29]} 63. g4 {[%emt 0:00:35]} Bd6 {[%emt 0:00:27]} 64. Kf5 {[%emt 0:00:24]} Bb8 {[%emt 0:00:39]} 65. Nc5 {[%emt 0:00:29]} 1-0